bitfinex-derivatives/quotes_BTCF0:USTF0_20220103
["timestamp","ask_amount","ask_price","bid_price","bid_amount"]
[1641197418652,0.188,47040.0,47039.0,0.60250553]
[1641197418852,0.19445018,47040.0,47039.0,0.60250553]
[1641197419659,0.00645018,47040.0,47039.0,0.60250553]
[1641197419856,1.43861871,47043.0,47039.0,0.63355889]
[1641197420055,1.43861871,47043.0,47041.0,0.18]
[1641197420456,1.63161871,47043.0,47041.0,0.18]
[1641197420655,0.193,47043.0,47042.0,0.02225792]
[1641197421056,1.57895438,47048.0,47042.0,0.001]
[1641197421256,0.18,47060.0,47042.0,0.001]
[1641197421257,0.29554947,47060.0,47047.0,0.181]
[1641197421456,0.8341028,47061.0,47053.0,0.18]
[1641197421657,0.8341028,47061.0,47053.0,0.25288]
[1641197422379,1.0001028,47061.0,47054.0,0.14033567]
[1641197423172,0.166,47061.0,47055.0,0.6017526]
[1641197423873,0.87464894,47065.0,47055.0,0.6017526]
[1641197424172,0.87464894,47065.0,47054.0,0.14033567]
[1641197424173,0.87464894,47065.0,47056.0,0.6017526]
[1641197424373,1.06164894,47065.0,47056.0,0.6017526]
[1641197425674,0.87464894,47065.0,47056.0,0.6017526]
[1641197426475,0.92664894,47065.0,47057.0,0.18]
[1641197427680,0.87464894,47065.0,47057.0,0.18]
[1641197428275,0.14033567,47065.0,47057.0,0.18]
[1641197428475,0.32433567,47065.0,47057.0,0.342]
[1641197428676,0.32433567,47065.0,47057.0,0.171794]
[1641197428875,0.32433567,47065.0,47057.0,0.351794]
[1641197429777,0.14033567,47065.0,47057.0,0.189794]
[1641197430586,0.31133567,47065.0,47057.0,0.358794]
[1641197431779,0.14033567,47065.0,47057.0,0.189794]
[1641197432178,0.14033567,47065.0,47057.0,0.009794]
[1641197432378,0.32333567,47065.0,47057.0,0.350794]
[1641197433781,0.14033567,47065.0,47057.0,0.189794]
[1641197434480,0.32033567,47065.0,47057.0,0.354794]
[1641197434781,0.32033567,47065.0,47057.0,0.174794]
[1641197435681,0.32033567,47065.0,47057.0,0.354794]
[1641197435881,0.14033567,47065.0,47057.0,0.189794]
[1641197436481,0.31433567,47065.0,47057.0,0.357794]
[1641197436683,0.00481064,47064.0,47057.0,0.177794]
[1641197436882,0.00481064,47064.0,47062.0,0.001]
[1641197437082,0.00481064,47064.0,47063.0,0.001]
[1641197438384,0.16981064,47064.0,47063.0,0.169]
[1641197439684,0.16981064,47064.0,47063.0,0.26112]
[1641197439887,0.00481064,47064.0,47063.0,0.102914]
[1641197440186,0.00481064,47064.0,47063.0,0.12416232]
[1641197440384,0.17100001,47064.0,47063.0,0.30816232]
[1641197440591,0.171,47064.0,47063.0,0.58883366]
[1641197441888,0.09508903,47064.0,47063.0,0.38358534]
[1641197442087,0.09508903,47064.0,47063.0,0.28167134]
[1641197442487,0.27008903,47064.0,47063.0,0.45867134]
[1641197442687,0.27008903,47064.0,47063.0,0.178]
[1641197443686,0.09508903,47064.0,47063.0,0.001]
[1641197444487,0.28008903,47064.0,47063.0,0.156]
[1641197445788,0.09508903,47064.0,47063.0,0.001]
[1641197446588,0.27808903,47064.0,47063.0,0.16]
[1641197446788,0.27332729,47064.0,47063.0,0.16]
[1641197447889,0.09032729,47064.0,47063.0,0.001]
[1641197448490,0.183,47064.0,47063.0,0.171]
[1641197449690,0.09032729,47064.0,47063.0,0.001]
[1641197450391,0.26432729,47064.0,47063.0,0.173]
[1641197450594,0.174,47064.0,47063.0,0.173]
[1641197451092,0.174,47064.0,47063.0,0.19424767]
[1641197451295,0.26432729,47064.0,47063.0,0.19424767]
[1641197451691,0.26432729,47064.0,47063.0,0.37424767]
[1641197451895,0.09032729,47064.0,47063.0,0.20224767]
[1641197452293,0.09032729,47064.0,47063.0,0.02224767]
[1641197452492,0.09032729,47064.0,47063.0,0.21024767]
[1641197452693,0.09032729,47064.0,47063.0,0.35058334]
[1641197453098,1.4405925,47071.0,47063.0,0.95063183]
[1641197453294,1.4405925,47071.0,47063.0,0.94963183]
[1641197453796,1.4405925,47071.0,47063.0,0.76163183]
[1641197454195,1.4405925,47069.0,47063.0,1.12155152]
[1641197454396,1.4405925,47069.0,47063.0,0.52150303]
[1641197455598,0.193,47071.0,47063.0,0.52150303]
[1641197455599,1.4405925,47068.0,47063.0,0.16158334]
[1641197456399,0.185,47068.0,47063.0,0.68050303]
[1641197457601,0.09032729,47067.0,47063.0,0.68050303]
[1641197457800,0.09032729,47067.0,47066.0,0.001]
[1641197458401,0.24932729,47067.0,47066.0,0.184]
[1641197459803,0.09032729,47067.0,47066.0,0.02224798]
[1641197460204,0.09032729,47067.0,47066.0,0.001]
[1641197460403,0.185,47067.0,47066.0,0.164]
[1641197461206,0.27532729,47067.0,47066.0,0.164]
[1641197461906,0.09032729,47067.0,47066.0,0.001]
[1641197462407,0.26932729,47067.0,47066.0,0.181]
[1641197464409,0.44532729,47067.0,47066.0,0.359]
[1641197465308,0.44532729,47067.0,47066.0,0.3802477]
[1641197466410,0.25632729,47067.0,47066.0,0.2032477]
[1641197468312,0.25632729,47067.0,47066.0,0.0222477]
[1641197468610,0.25432729,47067.0,47066.0,0.2042477]
[1641197469812,0.09032729,47067.0,47066.0,0.0222477]
[1641197470527,0.25532729,47067.0,47066.0,0.2042477]
[1641197471232,0.165,47067.0,47066.0,0.2042477]
[1641197471830,1.53091979,47072.0,47066.0,0.0222477]
[1641197472031,0.09032729,47067.0,47066.0,0.0212477]
[1641197472231,0.09032729,47067.0,47066.0,0.0222477]
[1641197472430,0.09032729,47067.0,47066.0,0.1572477]
[1641197472831,0.182,47072.0,47066.0,0.1572477]
[1641197472832,0.27232729,47072.0,47066.0,0.1572477]
[1641197473030,0.27232729,47072.0,47066.0,0.1562477]
[1641197473832,0.09032729,47071.0,47066.0,0.0212477]
[1641197474432,0.27432729,47071.0,47066.0,0.129]
[1641197474633,0.184,47071.0,47066.0,0.129]
[1641197475532,0.09032729,47070.0,47066.0,0.129]
[1641197476532,0.27632729,47070.0,47066.0,0.159]
[1641197477735,0.09032729,47069.0,47065.0,0.009794]
[1641197478539,0.172,47069.0,47065.0,0.183794]
[1641197479340,0.09032729,47068.0,47066.0,0.60004849]
[1641197480450,0.24232729,47068.0,47066.0,0.78104849]
[1641197480851,0.152,47068.0,47066.0,0.78104849]
[1641197481645,0.09032729,47067.0,47066.0,0.78104849]
[1641197481854,0.09032729,47067.0,47066.0,0.001]
[1641197482546,0.26632729,47067.0,47066.0,0.18]
[1641197482946,0.176,47067.0,47066.0,0.18]
[1641197483748,0.26632729,47067.0,47066.0,0.18]
[1641197483947,0.09032729,47067.0,47066.0,0.001]
[1641197484549,0.26732729,47067.0,47066.0,0.181]
[1641197485948,0.09032729,47067.0,47066.0,0.001]
[1641197486549,0.26932729,47067.0,47066.0,0.182]
[1641197487150,0.179,47067.0,47066.0,0.182]
[1641197487750,1.4405925,47071.0,47066.0,0.001]
[1641197487949,1.4405925,47071.0,47065.0,0.60984249]
[1641197488350,0.09032729,47067.0,47065.0,0.60984249]
[1641197488551,0.09032729,47067.0,47066.0,0.001]
[1641197488852,1.6245925,47071.0,47066.0,0.001]
[1641197489050,1.6245925,47071.0,47065.0,0.75684249]
[1641197489753,1.4405925,47071.0,47065.0,0.60984249]
[1641197490053,0.09032729,47070.0,47065.0,0.60984249]
[1641197490452,0.09032729,47070.0,47065.0,0.75284249]
[1641197490753,1.7065425,47071.0,47065.0,0.75284249]
[1641197491356,1.53091979,47069.0,47065.0,0.152794]
[1641197491754,1.53091979,47069.0,47065.0,0.009794]
[1641197492452,1.69691979,47069.0,47065.0,0.178794]
[1641197492654,1.6065925,47069.0,47065.0,0.178794]
[1641197493354,0.09032729,47068.0,47065.0,0.178794]
[1641197493755,0.09032729,47068.0,47065.0,0.009794]
[1641197494553,0.26032729,47068.0,47065.0,0.182794]
[1641197494966,0.17,47068.0,47065.0,0.542399]
[1641197495863,1.4405925,47069.0,47065.0,0.369399]
[1641197496056,0.09032729,47067.0,47065.0,0.369399]
[1641197496355,0.09032729,47067.0,47066.0,0.001]
[1641197496756,1.6285925,47069.0,47066.0,0.001]
[1641197496956,1.6285925,47069.0,47065.0,0.533399]
[1641197497758,0.09032729,47068.0,47065.0,0.533399]
[1641197497960,0.09032729,47068.0,47065.0,0.369399]
[1641197498659,0.26032729,47068.0,47065.0,0.543399]
[1641197499559,0.17,47068.0,47065.0,0.543399]
[1641197499959,1.4405925,47069.0,47065.0,0.369399]
[1641197500159,1.4405925,47068.0,47065.0,0.369399]
[1641197500359,0.09032729,47067.0,47065.0,0.009794]
[1641197500565,0.09032729,47067.0,47066.0,0.001]
[1641197500961,1.4405925,47068.0,47066.0,0.001]
[1641197501261,1.4405925,47068.0,47065.0,0.174794]
[1641197501861,1.53091979,47068.0,47065.0,0.009794]
[1641197502560,0.171,47068.0,47065.0,0.183794]
[1641197502761,0.171,47068.0,47066.0,0.359605]
[1641197503561,0.09032729,47067.0,47065.0,0.183794]
[1641197503762,0.09032729,47067.0,47066.0,0.001]
[1641197504663,0.26332729,47067.0,47066.0,0.178]
[1641197505265,0.173,47067.0,47066.0,0.178]
[1641197505866,1.4405925,47068.0,47066.0,0.001]
[1641197506065,1.53091979,47067.0,47065.0,0.009794]
[1641197506267,1.53091979,47067.0,47066.0,0.001]
[1641197506666,1.70791979,47067.0,47066.0,0.001]
[1641197506869,1.6175925,47067.0,47066.0,0.001]
[1641197507675,1.70791979,47067.0,47066.0,0.001]
[1641197507971,1.53091979,47067.0,47066.0,0.001]
[1641197508570,1.70591979,47067.0,47066.0,0.179]
[1641197509171,0.175,47067.0,47066.0,0.179]
[1641197509872,0.09032729,47067.0,47066.0,0.001]
[1641197510573,0.26532729,47067.0,47066.0,0.179]
[1641197511075,0.175,47067.0,47066.0,0.179]
[1641197511877,0.26532729,47067.0,47066.0,0.179]
[1641197512476,0.09032729,47067.0,47066.0,0.001]
[1641197512676,0.27632729,47067.0,47066.0,0.165]
[1641197514077,0.09032729,47067.0,47066.0,0.001]
[1641197514578,0.186,47067.0,47066.0,0.165]
[1641197515278,0.27632729,47067.0,47066.0,0.165]
[1641197516079,0.09032729,47067.0,47066.0,0.001]
[1641197516682,0.27632729,47067.0,47066.0,0.166]
[1641197516883,0.186,47067.0,47066.0,0.166]
[1641197517882,1.4405925,47068.0,47066.0,0.001]
[1641197518080,1.4405925,47068.0,47063.0,2.68934191]
[1641197518483,0.18,47065.0,47063.0,0.02124922]
[1641197518685,0.25218,47065.0,47058.0,1.2035052]
[1641197518884,0.42502744,47056.0,47054.0,1.34688488]
[1641197519183,0.42502744,47056.0,47054.0,0.02125307]
[1641197519387,0.60502744,47056.0,47054.0,1.22224379]
[1641197519883,0.60502744,47056.0,47054.0,0.79718614]
[1641197520282,0.60502744,47056.0,47042.0,0.80179347]
[1641197520482,0.18,47049.0,47042.0,0.80179347]
[1641197520682,0.25775,47049.0,47043.0,0.0120479]
[1641197521085,0.25775,47049.0,47046.0,1.32222824]
[1641197521386,0.39808567,47049.0,47046.0,1.32222824]
[1641197522486,0.39808567,47049.0,47044.0,0.45758272]
[1641197522686,0.40808567,47049.0,47044.0,0.45758272]
[1641197522887,0.09032729,47048.0,47044.0,0.45758272]
[1641197523086,0.09032729,47048.0,47042.0,0.14033567]
[1641197524586,0.28032729,47048.0,47042.0,0.14033567]
[1641197524987,0.28032729,47048.0,47043.0,0.18]
[1641197525190,0.28032729,47048.0,47043.0,0.35906618]
[1641197525487,0.28032729,47048.0,47047.0,0.14033567]
[1641197526086,0.09032729,47048.0,47047.0,0.14033567]
[1641197526289,0.09032729,47048.0,47047.0,0.14133567]
[1641197526490,1.44541923,47053.0,47047.0,0.1746354]
[1641197526690,0.169,47048.0,47047.0,1.2896354]
[1641197526898,1.44541923,47053.0,47047.0,1.4706354]
[1641197527099,1.7748,47063.0,47052.0,0.001]
[1641197527301,0.14033567,47068.0,47058.0,0.18]
[1641197527499,0.14033567,47068.0,47063.0,0.001]
[1641197527702,0.14033567,47068.0,47067.0,0.001]
[1641197528103,2.56495495,47079.0,47067.0,0.001]
[1641197528104,2.56495495,47079.0,47067.0,0.08224624]
[1641197528302,2.56495495,47079.0,47062.0,0.14033567]
[1641197528503,0.10309136,47080.0,47075.0,0.18]
[1641197528701,0.3397,47091.0,47079.0,0.181]
[1641197528901,0.3397,47091.0,47088.0,0.18]
[1641197529101,0.85247882,47080.0,47078.0,0.2342376]
[1641197529302,0.85247882,47080.0,47079.0,0.181]
[1641197529514,1.68607064,47082.0,47079.0,0.61180101]
[1641197529803,1.45147064,47082.0,47081.0,0.001]
[1641197530402,1.45147064,47082.0,47081.0,1.12903849]
[1641197530602,2.71371373,47093.0,47081.0,1.32203849]
[1641197530802,2.71371373,47093.0,47090.0,0.18]
[1641197531002,2.71371373,47093.0,47092.0,0.001]
[1641197531201,0.90762823,47093.0,47092.0,0.001]
[1641197531401,0.02,47096.0,47092.0,0.001]
[1641197531600,0.02,47096.0,47095.0,0.14133567]
[1641197532602,0.203,47096.0,47095.0,0.21333567]
[1641197534001,0.203,47096.0,47095.0,0.14133567]
[1641197534002,0.02,47096.0,47095.0,0.14133567]
[1641197534702,0.203,47096.0,47095.0,0.28333567]
[1641197536204,0.02,47096.0,47095.0,0.14133567]
[1641197536603,0.203,47096.0,47095.0,0.28833567]
[1641197537208,0.18,47117.0,47095.0,0.48956961]
[1641197537509,0.18,47117.0,47109.0,0.14033567]
[1641197537806,0.18,47114.0,47109.0,0.22534567]
[1641197538006,0.18,47110.0,47109.0,0.22534567]
[1641197538207,0.08005,47112.0,47109.0,0.22534567]
[1641197538407,0.18,47110.0,47109.0,0.08501]
[1641197538605,0.18,47110.0,47109.0,0.27101]
[1641197538805,0.50457068,47112.0,47109.0,0.186]
[1641197539005,0.18,47110.0,47109.0,0.186]
[1641197539306,0.50457068,47112.0,47109.0,0.186]
[1641197539806,0.18,47110.0,47109.0,0.186]
[1641197540007,0.50457068,47112.0,47101.0,0.35726269]
[1641197540209,0.42452068,47112.0,47101.0,0.35726269]
[1641197540406,0.76605204,47117.0,47101.0,0.35726269]
[1641197540605,0.58605204,47117.0,47101.0,0.54126269]
[1641197540806,0.58605204,47117.0,47101.0,0.184]
[1641197541009,0.18,47110.0,47101.0,0.184]
[1641197541206,0.18,47112.0,47102.0,0.08596491]
[1641197542510,0.18,47112.0,47101.0,0.35726269]
[1641197542714,0.09026951,47111.0,47102.0,0.184]
[1641197543612,0.27026951,47111.0,47102.0,0.184]
[1641197544013,0.18,47110.0,47102.0,0.184]
[1641197544612,0.27026951,47110.0,47102.0,0.371]
[1641197544811,0.09026951,47110.0,47102.0,0.371]
[1641197545413,0.09026951,47109.0,47102.0,0.371]
[1641197546014,0.09026951,47109.0,47100.0,0.37849505]
[1641197546615,0.09026951,47109.0,47100.0,0.56749505]
[1641197546816,0.09026951,47112.0,47101.0,0.35726269]
[1641197547417,0.09026951,47115.0,47102.0,0.35726269]
[1641197548717,0.09026951,47115.0,47102.0,0.52826269]
[1641197548918,1.44410747,47104.0,47102.0,0.52826269]
[1641197549517,1.44410747,47104.0,47103.0,0.02123103]
[1641197549718,0.06989,47109.0,47103.0,0.02123103]
[1641197550727,0.06989,47109.0,47103.0,0.21023103]
[1641197551129,0.06989,47109.0,47103.0,0.189]
[1641197552121,0.18,47107.0,47100.0,0.02123205]
[1641197552723,0.06989,47109.0,47100.0,0.20823205]
[1641197552930,0.18,47107.0,47100.0,0.20823205]
[1641197553322,0.18,47103.0,47100.0,0.187]
[1641197553923,0.32097191,47103.0,47100.0,0.187]
[1641197554227,0.32097191,47103.0,47095.0,0.14033567]
[1641197554228,0.14097473,47102.0,47095.0,0.14033567]
[1641197554424,0.18,47100.0,47095.0,0.14033567]
[1641197554624,0.18,47100.0,47099.0,0.001]
[1641197555224,0.14097473,47102.0,47099.0,0.001]
[1641197555434,0.14097473,47102.0,47095.0,0.32133567]
[1641197555925,0.14033567,47105.0,47095.0,0.32133567]
[1641197556124,0.14033567,47105.0,47095.0,0.14033567]
[1641197556325,0.14033567,47105.0,47099.0,0.02123256]
[1641197557125,0.009794,47108.0,47099.0,0.02123256]
[1641197557527,0.02123394,47114.0,47096.0,0.02123394]
[1641197557726,0.31037406,47111.0,47101.0,0.14033567]
[1641197558728,0.31037406,47111.0,47101.0,0.32333567]
[1641197559727,0.14170373,47109.0,47101.0,0.32333567]
[1641197559928,0.14170373,47109.0,47101.0,0.68059836]
[1641197560127,0.14170373,47109.0,47101.0,0.49759836]
[1641197560728,0.09025837,47110.0,47101.0,0.68359836]
[1641197561230,0.09025837,47108.0,47102.0,0.35726269]
[1641197561830,0.09025837,47110.0,47101.0,0.68359836]
[1641197562631,0.09025837,47110.0,47102.0,0.35726269]
[1641197564734,0.09025837,47110.0,47102.0,0.54326269]
[1641197565135,1.44411275,47104.0,47102.0,0.54326269]
[1641197565335,1.44411275,47104.0,47103.0,0.001]
[1641197565535,1.44411275,47104.0,47103.0,0.02223027]
[1641197566139,0.20293571,47118.0,47103.0,0.37949296]
[1641197566140,1.44411275,47106.0,47103.0,0.37949296]
[1641197566335,1.44411275,47106.0,47105.0,0.001]
[1641197567537,1.44411275,47106.0,47105.0,0.02222856]
[1641197568139,1.44411275,47106.0,47105.0,0.02122856]
[1641197568743,1.44411275,47106.0,47105.0,0.191]
[1641197569748,0.17620148,47107.0,47105.0,0.191]
[1641197569951,0.27025837,47106.0,47105.0,0.191]
[1641197570149,0.34135837,47106.0,47101.0,0.49759836]
[1641197570749,0.34135837,47106.0,47101.0,0.32333567]
[1641197570949,0.16135837,47106.0,47101.0,0.32333567]
[1641197571353,0.34135837,47106.0,47101.0,0.32333567]
[1641197571550,0.09025837,47105.0,47101.0,0.32333567]
[1641197572150,0.09025837,47105.0,47101.0,0.14033567]
[1641197572559,1.44422023,47102.0,47101.0,0.14033567]
[1641197572958,1.44422023,47102.0,47101.0,0.32633567]
[1641197574252,1.44422023,47102.0,47101.0,0.14033567]
[1641197574853,1.44422023,47102.0,47101.0,0.191]
[1641197575057,0.09025837,47105.0,47101.0,0.191]
[1641197576257,0.09025837,47105.0,47099.0,0.02123248]
[1641197576855,0.09025837,47105.0,47099.0,0.20723248]
[1641197577459,1.4442316,47100.0,47099.0,0.20723248]
[1641197577659,1.4442316,47100.0,47099.0,0.20823248]
[1641197578260,1.4442316,47100.0,47099.0,0.02223248]
[1641197578661,1.4442316,47102.0,47099.0,0.02223248]
[1641197578863,1.4442316,47102.0,47101.0,0.001]
[1641197579375,1.4442316,47103.0,47100.0,0.35726269]
[1641197580762,1.4442316,47101.0,47100.0,0.35726269]
[1641197580962,1.4442316,47101.0,47100.0,0.19]
[1641197582269,1.4442316,47101.0,47100.0,0.001]
[1641197582864,1.4442316,47101.0,47100.0,0.194]
[1641197584570,0.09025837,47105.0,47100.0,0.194]
[1641197584771,0.09025837,47105.0,47100.0,0.193]
[1641197584964,0.09025837,47105.0,47100.0,0.386]
[1641197586367,0.09025837,47105.0,47098.0,0.37849566]
[1641197586970,0.09025837,47105.0,47098.0,0.56149566]
[1641197587766,1.44411676,47103.0,47100.0,0.35726269]
[1641197587970,0.40831676,47103.0,47102.0,1.296]
[1641197588166,0.36581676,47103.0,47102.0,0.20223096]
[1641197588367,0.36581676,47103.0,47102.0,0.02223096]
[1641197588566,0.36581676,47103.0,47102.0,0.20223096]
[1641197588967,0.09025837,47107.0,47102.0,0.21823096]
[1641197589169,0.09025837,47103.0,47102.0,0.21723096]
[1641197589470,0.09025837,47103.0,47102.0,0.21823096]
[1641197589868,0.09025837,47103.0,47102.0,0.35856663]
[1641197590270,0.32033567,47116.0,47102.0,0.35856663]
[1641197590271,0.09025837,47115.0,47102.0,0.35856663]
[1641197590478,0.09025837,47115.0,47102.0,0.16156663]
[1641197590871,0.09025837,47115.0,47102.0,0.34556663]
[1641197591772,0.09025837,47115.0,47106.0,0.35790525]
[1641197592974,0.09025837,47115.0,47106.0,0.54190525]
[1641197593274,1.44399685,47108.0,47106.0,0.184]
[1641197594276,1.44399685,47108.0,47105.0,0.35790525]
[1641197594976,1.44399685,47108.0,47106.0,0.191]
[1641197595175,1.44399685,47107.0,47106.0,0.191]
[1641197595877,1.50502685,47107.0,47106.0,0.191]
[1641197596886,0.06103,47107.0,47105.0,0.35790525]
[1641197597088,0.15128837,47107.0,47106.0,0.182]
[1641197597289,0.33128837,47107.0,47106.0,0.182]
[1641197597891,0.37096456,47104.0,47100.0,0.83511225]
[1641197598081,0.18,47101.0,47100.0,0.46884148]
[1641197598282,0.2012424,47101.0,47094.0,1.32028245]
[1641197598481,0.2012424,47101.0,47097.0,0.59751015]
[1641197598482,0.0212424,47101.0,47097.0,0.59751015]
[1641197598682,0.18,47099.0,47097.0,0.59751015]
[1641197599982,0.14033567,47098.0,47090.0,1.32028245]
[1641197600183,0.14033567,47098.0,47085.0,1.7795388]
[1641197600381,0.14033567,47098.0,47085.0,0.0212388]
[1641197600582,0.14033567,47098.0,47083.0,1.46061812]
[1641197600883,1.44441379,47095.0,47089.0,0.02123716]
[1641197603082,1.63041379,47095.0,47089.0,0.02123716]
[1641197603281,1.63041379,47095.0,47084.0,1.3415219]
[1641197603485,0.18,47093.0,47084.0,1.32028245]
[1641197603683,1.63041379,47095.0,47084.0,1.32028245]
[1641197603983,0.09025837,47094.0,47084.0,1.32028245]
[1641197604384,0.18,47093.0,47084.0,1.3415217]
[1641197604984,1.44441379,47091.0,47084.0,0.02123925]
[1641197605684,1.44441379,47091.0,47084.0,1.21864527]
[1641197606686,1.44441379,47091.0,47086.0,0.83819609]
[1641197606992,1.63441379,47091.0,47086.0,0.83819609]
[1641197607185,1.44441379,47090.0,47086.0,0.83819609]
[1641197607389,0.009794,47089.0,47085.0,0.83819609]
[1641197607685,0.009794,47089.0,47083.0,0.14033567]
[1641197608086,1.53489717,47088.0,47086.0,0.35946003]
[1641197608987,1.72189717,47088.0,47086.0,0.35946003]
[1641197609387,0.18,47087.0,47086.0,0.35946003]
[1641197610588,1.6246091,47087.0,47086.0,0.35946003]
[1641197610788,1.6246091,47087.0,47084.0,0.59910005]
[1641197610789,1.71489717,47087.0,47084.0,0.35946003]
[1641197610986,1.72489717,47087.0,47084.0,0.35946003]
[1641197611286,1.90489717,47087.0,47084.0,0.35946003]
[1641197611686,0.46028807,47087.0,47084.0,0.35946003]
[1641197611886,0.28028807,47087.0,47084.0,0.35946003]
[1641197612088,0.46028807,47087.0,47084.0,0.35946003]
[1641197612287,0.09028807,47086.0,47082.0,0.35946003]
[1641197613088,1.44474651,47084.0,47082.0,0.35946003]
[1641197614590,1.53503458,47085.0,47083.0,0.35946003]
[1641197614993,0.188,47084.0,47083.0,0.35946003]
[1641197615291,1.63274651,47084.0,47082.0,0.35946003]
[1641197615790,0.009794,47083.0,47082.0,0.35946003]
[1641197616792,0.43458139,47083.0,47082.0,0.35946003]
[1641197616991,0.62358139,47083.0,47082.0,0.35946003]
[1641197617292,2.15861597,47083.0,47081.0,0.35946003]
[1641197618493,0.09028807,47082.0,47081.0,0.35946003]
[1641197618693,0.18013807,47082.0,47081.0,0.35946003]
[1641197619094,0.36713807,47082.0,47081.0,0.35946003]
[1641197620294,1.81188458,47082.0,47080.0,0.35946003]
[1641197620498,1.62488458,47082.0,47080.0,0.35946003]
[1641197620995,1.81188458,47082.0,47080.0,0.35946003]
[1641197622000,0.09028807,47081.0,47080.0,0.35946003]
[1641197623002,0.27828807,47081.0,47080.0,0.35946003]
[1641197624320,0.09028807,47081.0,47080.0,0.35946003]
[1641197624515,0.09028807,47081.0,47079.0,0.35946003]
[1641197625117,0.27828807,47081.0,47079.0,0.35946003]
[1641197625324,0.06535913,47079.0,47078.0,0.59910005]
[1641197625526,0.009794,47078.0,47074.0,1.19820011]
[1641197625717,0.18,47076.0,47074.0,1.19820011]
[1641197626124,0.02125168,47075.0,47074.0,1.19820011]
[1641197626318,0.16158735,47075.0,47074.0,1.19820011]
[1641197627117,0.35058735,47075.0,47074.0,1.19820011]
[1641197627719,0.44087542,47075.0,47074.0,1.19820011]
[1641197628132,0.44087542,47075.0,47071.0,0.02]
[1641197628530,0.25187542,47075.0,47071.0,0.02]
[1641197629121,0.44087542,47075.0,47071.0,0.02]
[1641197629622,0.18,47072.0,47071.0,0.02]
[1641197629822,0.18,47073.0,47071.0,0.02]
[1641197630726,0.27028807,47072.0,47071.0,0.02]
[1641197631727,1.71538379,47072.0,47071.0,0.02]
[1641197632727,1.53538379,47072.0,47071.0,0.02]
[1641197633126,1.72638379,47072.0,47071.0,0.02]
[1641197633727,1.90638379,47072.0,47071.0,0.02]
[1641197634128,1.72638379,47072.0,47071.0,0.02]
[1641197634329,1.71538379,47072.0,47071.0,0.02]
[1641197634529,1.53538379,47072.0,47071.0,0.02]
[1641197635035,1.72538379,47072.0,47071.0,0.02]
[1641197635429,1.90538379,47072.0,47071.0,0.02]
[1641197635630,0.24392347,47070.0,47069.0,0.36095269]
[1641197636030,0.28028807,47072.0,47069.0,0.36095269]
[1641197636432,0.23062374,47070.0,47069.0,0.36095269]
[1641197637131,0.42162374,47070.0,47069.0,0.36095269]
[1641197638335,1.86677712,47070.0,47068.0,0.36095269]
[1641197638531,1.67577712,47070.0,47068.0,0.36095269]
[1641197639143,1.86277712,47070.0,47068.0,0.36095269]
[1641197639534,0.09028807,47069.0,47068.0,0.36095269]
[1641197641039,0.186,47069.0,47068.0,0.36095269]
[1641197641242,0.42491778,47068.0,47062.0,1.9331]
[1641197641441,0.42491778,47068.0,47050.0,0.36095269]
[1641197641641,0.42491778,47068.0,47051.0,3.43164029]
[1641197643045,0.61191778,47068.0,47051.0,3.43164029]
[1641197643446,0.61191778,47068.0,47060.0,0.02125001]
[1641197643643,0.187,47068.0,47065.0,0.18]
[1641197643844,0.187,47068.0,47065.0,0.24907]
[1641197644447,0.009794,47073.0,47067.0,0.14033567]
[1641197645146,0.203794,47073.0,47067.0,0.14033567]
[1641197645949,0.194,47073.0,47067.0,0.14033567]
[1641197646546,0.14033567,47075.0,47067.0,0.14033567]
[1641197647146,0.31633567,47075.0,47067.0,0.27433567]
[1641197648550,0.14033567,47075.0,47067.0,0.14033567]
[1641197649148,0.32333567,47075.0,47067.0,0.23233567]
[1641197650348,0.14033567,47075.0,47067.0,0.14033567]
[1641197650751,0.08198085,47074.0,47067.0,0.14033567]
[1641197650952,0.18,47073.0,47067.0,0.14033567]
[1641197651153,0.08198085,47074.0,47067.0,0.14033567]
[1641197651352,0.18,47073.0,47067.0,0.14033567]
[1641197651649,0.08198085,47074.0,47067.0,0.14033567]
[1641197651857,0.18,47073.0,47067.0,0.14033567]
[1641197652051,0.26198085,47074.0,47067.0,0.14033567]
[1641197652552,0.36018883,47070.0,47062.0,0.14033567]
[1641197653054,0.54518883,47070.0,47062.0,0.29933567]
[1641197653554,0.185,47070.0,47064.0,0.36095269]
[1641197653855,0.185,47070.0,47064.0,0.45151269]
[1641197654254,0.185,47070.0,47065.0,0.18]
[1641197654552,0.15012967,47075.0,47065.0,0.54095269]
[1641197654553,0.09033017,47069.0,47065.0,0.54095269]
[1641197655153,0.25633017,47069.0,47065.0,0.71895269]
[1641197655552,0.166,47069.0,47067.0,0.36095269]
[1641197656354,0.09033017,47068.0,47066.0,0.36095269]
[1641197657052,0.26633017,47068.0,47066.0,0.53895269]
[1641197657253,0.176,47068.0,47066.0,0.53895269]
[1641197658066,0.09033017,47067.0,47066.0,0.53895269]
[1641197658466,0.09033017,47067.0,47066.0,0.36095269]
[1641197659168,0.26933017,47067.0,47066.0,0.54195269]
[1641197659774,0.179,47067.0,47066.0,0.54195269]
[1641197660368,0.26933017,47067.0,47066.0,0.54195269]
[1641197660568,0.09033017,47067.0,47066.0,0.36095269]
[1641197661069,0.27033017,47067.0,47066.0,0.54195269]
[1641197662369,0.09033017,47067.0,47066.0,0.36095269]
[1641197663070,0.25033017,47067.0,47066.0,0.54395269]
[1641197663970,0.16,47067.0,47066.0,0.54395269]
[1641197664569,0.09033017,47067.0,47066.0,0.36095269]
[1641197665069,0.24933017,47067.0,47066.0,0.54495269]
[1641197665569,0.159,47067.0,47066.0,0.54495269]
[1641197666272,0.24933017,47067.0,47066.0,0.54495269]
[1641197666470,0.09033017,47067.0,47066.0,0.36095269]
[1641197667070,0.25233017,47067.0,47066.0,0.54395269]
[1641197668572,0.09033017,47067.0,47066.0,0.36095269]
[1641197669273,0.24633017,47067.0,47066.0,0.54395269]
[1641197669671,0.156,47067.0,47066.0,0.54395269]
[1641197670572,0.09033017,47067.0,47066.0,0.36095269]
[1641197671175,0.24833017,47067.0,47066.0,0.54295269]
[1641197672473,0.09033017,47067.0,47066.0,0.36095269]
[1641197673275,0.24833017,47067.0,47066.0,0.54295269]
[1641197673476,0.158,47067.0,47066.0,0.54295269]
[1641197674178,0.24833017,47067.0,47066.0,0.54295269]